fUSD/lending_fUSD_20260504
["ID","MTS","AMOUNT","RATE_DAILY","PERIOD"]
[421555234,1777871435000,-4789.988655,0.00024,2]
[421555237,1777871435000,-151.0,0.00024,2]
[421555236,1777871435000,-151.0,0.00024,2]
[421555240,1777871435000,-500.0,0.00024174,2]
[421555253,1777871435000,-500.0,0.00024454,2]
[421555239,1777871435000,-232.123768,0.00024,2]
[421555242,1777871435000,-249.73924455,0.00024241,2]
[421555245,1777871435000,-831.7,0.00024324,2]
[421555247,1777871435000,-194.724221,0.00024324,2]
[421555248,1777871435000,-194.724221,0.00024324,2]
[421555246,1777871435000,-151.0,0.00024324,2]
[421555244,1777871435000,-500.0,0.00024323,2]
[421555250,1777871435000,-194.724221,0.00024324,2]
[421555255,1777871435000,-249.03587547,0.00024559,2]
[421555256,1777871435000,-332.0,0.00024574,2]
[421555241,1777871435000,-197.08,0.00024175,2]
[421555285,1777871435000,-2709.30010522,0.00025207,2]
[421555325,1777871435000,-183.56859,0.00027397,2]
[421555278,1777871435000,-2196.26625298,0.00025,2]
[421555305,1777871435000,-1100.0,0.000269,9]
[421555307,1777871435000,-928.0,0.00026903,2]
[421555309,1777871435000,-1211.947,0.00026972,2]
[421555308,1777871435000,-3535.0,0.00026972,2]
[421555315,1777871435000,-151.0,0.00027397,2]
[421555313,1777871435000,-200.0,0.00027397,2]
[421555311,1777871435000,-515.0,0.00027137,2]
[421555306,1777871435000,-2463.0,0.00026903,2]
[421555310,1777871435000,-280.0,0.00027077,8]
[421555304,1777871435000,-5000.0,0.00026776,2]
[421555314,1777871435000,-735.14,0.00027397,2]
[421555316,1777871435000,-300.0,0.00027397,2]
[421555319,1777871435000,-718.963882,0.00027397,2]
[421555318,1777871435000,-1461.98,0.00027397,2]
[421555323,1777871435000,-183.56859,0.00027397,2]
[421555324,1777871435000,-183.56859,0.00027397,2]
[421555322,1777871435000,-718.963882,0.00027397,2]
[421555320,1777871435000,-718.963882,0.00027397,2]
[421555277,1777871435000,-281.31781928,0.00025,2]
[421555321,1777871435000,-718.963882,0.00027397,2]
[421555317,1777871435000,-151.0,0.00027397,2]
[421555303,1777871435000,-3675.0,0.00026766,2]
[421555312,1777871435000,-1500.0,0.00027397,2]
[421555301,1777871435000,-1145.32340105,0.00026517,2]
[421555284,1777871435000,-250.0,0.00025205,2]
[421555302,1777871435000,-200.65703844,0.00026646,2]
[421555280,1777871435000,-1000.0,0.00025002,2]
[421555279,1777871435000,-1000.0,0.00025002,2]
[421555281,1777871435000,-1500.0,0.00025008,2]
[421555282,1777871435000,-500.0,0.00025149,2]
[421555283,1777871435000,-4066.20700405,0.00025162,2]
[421555288,1777871435000,-1500.0,0.00025419,2]
[421555290,1777871435000,-1500.0,0.0002555,2]
[421555287,1777871435000,-500.0,0.00025373,2]
[421555286,1777871435000,-1118.0,0.00025254,2]
[421555291,1777871435000,-1710.46501094,0.00025556,2]
[421555293,1777871435000,-2000.0,0.00025967,2]
[421555292,1777871435000,-350.0,0.00025753,2]
[421555294,1777871435000,-550.0,0.00026,2]
[421555295,1777871435000,-2000.0,0.00026098,2]
[421555297,1777871435000,-831.7,0.00026296,2]
[421555296,1777871435000,-401.97816903,0.00026098,2]
[421555300,1777871435000,-2000.0,0.00026515,2]
[421555289,1777871435000,-1500.0,0.0002555,2]
[421555298,1777871435000,-361.90725751,0.00026301,2]
[421555299,1777871435000,-27791.49190631,0.000264,2]
[421555364,1777871436000,-154.31,0.00028665,7]
[421555360,1777871436000,-500.0,0.00028192,2]
[421555361,1777871436000,-831.7,0.00028267,2]
[421555362,1777871436000,-154.31,0.0002863,2]
[421555363,1777871436000,-155.18,0.0002863,2]
[421555356,1777871436000,-365.88,0.00028,2]
[421555357,1777871436000,-365.88,0.00028,2]
[421555358,1777871436000,-365.88,0.00028,2]
[421555355,1777871436000,-591.494708,0.00028,7]
[421555359,1777871436000,-365.88,0.00028,2]
[421555365,1777871436000,-155.18,0.00028665,7]
[421555374,1777871436000,-154.31,0.00028842,2]
[421555368,1777871436000,-154.31,0.00028736,2]
[421555370,1777871436000,-154.31,0.00028771,7]
[421555366,1777871436000,-154.31,0.000287,30]
[421555369,1777871436000,-155.18,0.00028736,2]
[421555372,1777871436000,-154.31,0.00028807,30]
[421555375,1777871436000,-155.18,0.00028842,2]
[421555371,1777871436000,-155.18,0.00028771,7]
[421555373,1777871436000,-155.18,0.00028807,30]
[421555377,1777871436000,-155.18,0.00028878,7]
[421555378,1777871436000,-154.31,0.00028913,30]
[421555376,1777871436000,-154.31,0.00028878,7]
[421555327,1777871436000,-151.0,0.00027397,2]
[421555367,1777871436000,-155.18,0.000287,30]
[421555354,1777871436000,-591.494708,0.00028,7]
[421555334,1777871436000,-352.86,0.00027397,10]
[421555353,1777871436000,-591.494708,0.00028,7]
[421555384,1777871436000,-154.31,0.0002902,30]
[421555333,1777871436000,-423.43,0.00027397,10]
[421555329,1777871436000,-591.494708,0.00027397,2]
[421555328,1777871436000,-151.0,0.00027397,2]
[421555331,1777871436000,-591.494708,0.00027397,2]
[421555330,1777871436000,-591.494708,0.00027397,2]
[421555332,1777871436000,-591.494708,0.00027397,2]
[421555326,1777871436000,-183.56859,0.00027397,2]
[421555335,1777871436000,-294.05,0.00027397,10]
[421555337,1777871436000,-453.41,0.000274,7]
[421555338,1777871436000,-500.0,0.000274,7]
[421555339,1777871436000,-17040.81,0.000274,7]
[421555342,1777871436000,-2709.30010522,0.00027656,2]
[421555336,1777871436000,-153.317167,0.000274,7]
[421555340,1777871436000,-265.28,0.000274,7]
[421555344,1777871436000,-600.0,0.00028,2]
[421555343,1777871436000,-2947.64686291,0.00027954,2]
[421555345,1777871436000,-162.48539177,0.00028,7]
[421555341,1777871436000,-4066.20700405,0.00027592,2]
[421555346,1777871436000,-183.56859,0.00028,7]
[421555347,1777871436000,-183.56859,0.00028,7]
[421555350,1777871436000,-151.0,0.00028,7]
[421555349,1777871436000,-183.56859,0.00028,7]
[421555348,1777871436000,-183.56859,0.00028,7]
[421555352,1777871436000,-591.494708,0.00028,7]
[421555351,1777871436000,-151.0,0.00028,7]
[421555379,1777871436000,-155.18,0.00028913,30]
[421555403,1777871436000,-17040.81,0.000293,7]
[421555383,1777871436000,-155.18,0.00028984,7]
[421555413,1777871436000,-280.0,0.00029404,13]
[421555416,1777871436000,-150.0,0.00029416,2]
[421555415,1777871436000,-150.0,0.00029416,2]
[421555422,1777871436000,-150.0,0.00029744,2]
[421555414,1777871436000,-150.0,0.00029416,2]
[421555424,1777871436000,-150.0,0.00029744,2]
[421555423,1777871436000,-150.0,0.00029744,2]
[421555418,1777871436000,-150.0,0.00029416,2]
[421555420,1777871436000,-453.41,0.000295,7]
[421555417,1777871436000,-150.0,0.00029416,2]
[421555419,1777871436000,-245.0,0.00029416,2]
[421555408,1777871436000,-150.0,0.00029383,2]
[421555425,1777871436000,-150.0,0.00029744,2]
[421555428,1777871436000,-150.0,0.00029744,2]
[421555427,1777871436000,-150.0,0.00029744,2]
[421555436,1777871436000,-250.0,0.00029846,2]
[421555431,1777871436000,-150.0,0.00029744,2]
[421555432,1777871436000,-150.0,0.00029744,2]
[421555433,1777871436000,-150.0,0.00029744,2]
[421555435,1777871436000,-174.0,0.00029744,2]
[421555429,1777871436000,-150.0,0.00029744,2]
[421555434,1777871436000,-150.0,0.00029744,2]
[421555430,1777871436000,-150.0,0.00029744,2]
[421555382,1777871436000,-154.31,0.00028984,7]
[421555426,1777871436000,-155.0,0.00029744,2]
[421555406,1777871436000,-150.0,0.00029383,2]
[421555421,1777871436000,-150.0,0.00029534,2]
[421555407,1777871436000,-150.0,0.00029383,2]
[421555405,1777871436000,-150.0,0.00029383,2]
[421555380,1777871436000,-154.31,0.00028949,2]
[421555385,1777871436000,-155.18,0.0002902,30]
[421555386,1777871436000,-515.0,0.00029025,4]
[421555398,1777871436000,-154.31,0.00029197,7]
[421555390,1777871436000,-399.26016995,0.0002908,5]
[421555388,1777871436000,-155.18,0.00029055,2]
[421555391,1777871436000,-200.0,0.00029082,2]
[421555389,1777871436000,-263.95753337,0.0002908,5]
[421555394,1777871436000,-154.31,0.00029126,30]
[421555397,1777871436000,-155.18,0.00029161,2]
[421555395,1777871436000,-155.18,0.00029126,30]
[421555381,1777871436000,-155.18,0.00028949,2]
[421555396,1777871436000,-154.31,0.00029161,2]
[421555404,1777871436000,-264.0,0.00029383,2]
[421555402,1777871436000,-155.2,0.00029232,30]
[421555412,1777871436000,-156.0,0.00029383,2]
[421555387,1777871436000,-154.31,0.00029055,2]
[421555400,1777871436000,-265.28,0.000292,7]
[421555410,1777871436000,-150.0,0.00029383,2]
[421555401,1777871436000,-154.33,0.00029232,30]
[421555409,1777871436000,-150.0,0.00029383,2]
[421555392,1777871436000,-154.31,0.00029091,7]
[421555399,1777871436000,-155.18,0.00029197,7]
[421555393,1777871436000,-155.18,0.00029091,7]
[421555411,1777871436000,-150.0,0.00029383,2]
[421555480,1777871437000,-415.794738,0.0003,7]
[421555473,1777871437000,-12743.31980048,0.0003,10]
[421555477,1777871437000,-151.0,0.0003,7]
[421555474,1777871437000,-650.0,0.0003,2]
[421555468,1777871437000,-12112.08886042,0.00029999,8]
[421555475,1777871437000,-162.48539177,0.0003,7]
[421555472,1777871437000,-5273.82516021,0.0003,10]
[421555470,1777871437000,-76255.43664262,0.0003,2]
[421555471,1777871437000,-280.0,0.0003,2]
[421555469,1777871437000,-118930.84561831,0.0003,5]
[421555476,1777871437000,-176.870533,0.0003,7]
[421555482,1777871437000,-415.794738,0.0003,7]
[421555496,1777871437000,-194.724221,0.0003,7]
[421555481,1777871437000,-415.794738,0.0003,7]
[421555484,1777871437000,-415.794738,0.0003,7]
[421555483,1777871437000,-415.794738,0.0003,7]
[421555486,1777871437000,-415.794738,0.0003,7]
[421555485,1777871437000,-415.794738,0.0003,7]
[421555491,1777871437000,-194.724221,0.0003,7]
[421555487,1777871437000,-415.794738,0.0003,7]
[421555488,1777871437000,-151.0,0.0003,7]
[421555492,1777871437000,-194.724221,0.0003,7]
[421555489,1777871437000,-151.0,0.0003,7]
[421555465,1777871437000,-500.0,0.00029999,2]
[421555494,1777871437000,-194.724221,0.0003,7]
[421555479,1777871437000,-179.714701,0.0003,7]
[421555464,1777871437000,-151.0,0.00029999,7]
[421555459,1777871437000,-151.0,0.00029999,7]
[421555463,1777871437000,-151.0,0.00029999,7]
[421555437,1777871437000,-250.0,0.00029846,2]
[421555438,1777871437000,-250.0,0.00029846,2]
[421555439,1777871437000,-250.0,0.00029846,2]
[421555443,1777871437000,-268.0,0.00029846,2]
[421555442,1777871437000,-250.0,0.00029846,2]
[421555441,1777871437000,-250.0,0.00029846,2]
[421555450,1777871437000,-264.24589981,0.00029999,60]
[421555440,1777871437000,-250.0,0.00029846,2]
[421555447,1777871437000,-928.0,0.00029903,2]
[421555444,1777871437000,-694.3842666,0.000299,2]
[421555449,1777871437000,-500.0,0.00029999,2]
[421555446,1777871437000,-2463.0,0.00029903,2]
[421555445,1777871437000,-1700.0,0.000299,10]
[421555448,1777871437000,-200.0,0.00029931,2]
[421555451,1777871437000,-151.0,0.00029999,7]
[421555455,1777871437000,-4789.988655,0.00029999,7]
[421555457,1777871437000,-4789.988655,0.00029999,7]
[421555490,1777871437000,-151.0,0.0003,7]
[421555453,1777871437000,-500.0,0.00029999,60]
[421555461,1777871437000,-718.963882,0.00029999,7]
[421555452,1777871437000,-151.0,0.00029999,7]
[421555456,1777871437000,-4789.988655,0.00029999,7]
[421555454,1777871437000,-4789.988655,0.00029999,7]
[421555458,1777871437000,-718.963882,0.00029999,7]
[421555460,1777871437000,-718.963882,0.00029999,7]
[421555462,1777871437000,-718.963882,0.00029999,7]
[421555467,1777871437000,-261112.84026037,0.00029999,8]
[421555466,1777871437000,-500.0,0.00029999,2]
[421555495,1777871437000,-194.724221,0.0003,7]
[421555478,1777871437000,-151.0,0.0003,7]
[421555500,1777871437000,-4789.988655,0.0003,7]
[421555529,1777871437000,-591.494708,0.0003,7]
[421555527,1777871437000,-591.494708,0.0003,7]
[421555532,1777871437000,-591.494708,0.0003,7]
[421555530,1777871437000,-591.494708,0.0003,7]
[421555537,1777871437000,-150.0,0.00030135,2]
[421555544,1777871437000,-500.0,0.00030136,2]
[421555542,1777871437000,-200.0,0.00030136,2]
[421555536,1777871437000,-2709.30010522,0.00030105,2]
[421555547,1777871437000,-466.0,0.00030136,30]
[421555539,1777871437000,-150.0,0.00030135,2]
[421555548,1777871437000,-735.14,0.00030137,2]
[421555538,1777871437000,-150.0,0.00030135,2]
[421555541,1777871437000,-245.53276393,0.00030135,2]
[421555540,1777871437000,-150.0,0.00030135,2]
[421555545,1777871437000,-500.0,0.00030136,30]
[421555546,1777871437000,-720.0,0.00030136,30]
[421555550,1777871437000,-151.0,0.00030137,7]
[421555551,1777871437000,-152.150391,0.00030137,7]
[421555549,1777871437000,-151.0,0.00030137,7]
[421555553,1777871437000,-160.92458671,0.00030137,2]
[421555552,1777871437000,-649.0,0.00030137,120]
[421555554,1777871437000,-79302.0,0.00030137,120]
[421555558,1777871437000,-150.0,0.00030773,7]
[421555556,1777871437000,-200.0,0.00030437,2]
[421555557,1777871437000,-150.0,0.00030773,7]
[421555555,1777871437000,-831.7,0.00030239,2]
[421555497,1777871437000,-194.724221,0.0003,7]
[421555528,1777871437000,-591.494708,0.0003,7]
[421555522,1777871437000,-151.0,0.0003,7]
[421555493,1777871437000,-194.724221,0.0003,7]
[421555531,1777871437000,-591.494708,0.0003,7]
[421555525,1777871437000,-591.494708,0.0003,7]
[421555502,1777871437000,-4789.988655,0.0003,7]
[421555501,1777871437000,-4789.988655,0.0003,7]
[421555499,1777871437000,-4789.988655,0.0003,7]
[421555504,1777871437000,-151.0,0.0003,7]
[421555505,1777871437000,-718.963882,0.0003,7]
[421555498,1777871437000,-194.724221,0.0003,7]
[421555508,1777871437000,-718.963882,0.0003,7]
[421555506,1777871437000,-718.963882,0.0003,7]
[421555509,1777871437000,-151.0,0.0003,7]
[421555510,1777871437000,-151.0,0.0003,7]
[421555511,1777871437000,-183.56859,0.0003,7]
[421555515,1777871437000,-183.56859,0.0003,7]
[421555514,1777871437000,-183.56859,0.0003,7]
[421555503,1777871437000,-718.963882,0.0003,7]
[421555512,1777871437000,-183.56859,0.0003,7]
[421555516,1777871437000,-151.0,0.0003,7]
[421555534,1777871437000,-150.84129375,0.00030036,2]
[421555526,1777871437000,-591.494708,0.0003,7]
[421555535,1777871437000,-150.0,0.00030037,2]
[421555533,1777871437000,-4066.20700405,0.00030023,2]
[421555523,1777871437000,-151.0,0.0003,7]
[421555524,1777871437000,-151.0,0.0003,7]
[421555521,1777871437000,-151.0,0.0003,7]
[421555513,1777871437000,-150.0,0.0003,7]
[421555519,1777871437000,-183.56859,0.0003,7]
[421555518,1777871437000,-183.56859,0.0003,7]
[421555517,1777871437000,-183.56859,0.0003,7]
[421555520,1777871437000,-183.56859,0.0003,7]
[421555610,1777871438000,-454.0,0.00031218,30]
[421555601,1777871438000,-162.48539177,0.00031,7]
[421555609,1777871438000,-1401.0,0.00031218,30]
[421555608,1777871438000,-456.0,0.00031218,30]
[421555595,1777871438000,-206.14,0.00030967,2]
[421555594,1777871438000,-206.14,0.00030967,2]
[421555591,1777871438000,-206.14,0.00030965,2]
[421555592,1777871438000,-206.14,0.00030965,2]
[421555593,1777871438000,-206.19,0.00030967,2]
[421555599,1777871438000,-206.14,0.00030967,2]
[421555590,1777871438000,-206.14,0.00030965,2]
[421555600,1777871438000,-265.28,0.00031,7]
[421555602,1777871438000,-500.0,0.0003101,2]
[421555612,1777871438000,-629.0,0.00031218,30]
[421555605,1777871438000,-453.41,0.000312,7]
[421555560,1777871438000,-150.0,0.00030773,7]
[421555606,1777871438000,-500.0,0.00031216,60]
[421555607,1777871438000,-334.0,0.00031218,30]
[421555623,1777871438000,-200.0,0.000314,7]
[421555622,1777871438000,-280.0,0.000314,19]
[421555624,1777871438000,-200.0,0.000314,7]
[421555614,1777871438000,-277.0,0.00031218,30]
[421555611,1777871438000,-152.0,0.00031218,30]
[421555617,1777871438000,-161.0,0.00031222,30]
[421555615,1777871438000,-2194.0,0.00031218,30]
[421555596,1777871438000,-206.14,0.00030967,2]
[421555618,1777871438000,-282.0,0.00031267,2]
[421555604,1777871438000,-17040.81,0.000311,7]
[421555589,1777871438000,-206.14,0.00030965,2]
[421555578,1777871438000,-300.0,0.00030928,2]
[421555588,1777871438000,-206.14,0.00030965,2]
[421555613,1777871438000,-180.0,0.00031218,30]
[421555559,1777871438000,-150.0,0.00030773,7]
[421555562,1777871438000,-150.72884545,0.00030773,7]
[421555564,1777871438000,-150.0,0.00030773,7]
[421555563,1777871438000,-261.68366573,0.00030773,7]
[421555565,1777871438000,-150.0,0.00030773,7]
[421555567,1777871438000,-200.0,0.00030779,2]
[421555566,1777871438000,-150.0,0.00030773,7]
[421555572,1777871438000,-650.0,0.00030928,2]
[421555568,1777871438000,-515.0,0.00030913,6]
[421555570,1777871438000,-650.0,0.00030928,2]
[421555571,1777871438000,-650.0,0.00030928,2]
[421555569,1777871438000,-650.0,0.00030928,2]
[421555598,1777871438000,-206.14,0.00030967,2]
[421555573,1777871438000,-650.0,0.00030928,2]
[421555575,1777871438000,-650.0,0.00030928,2]
[421555583,1777871438000,-206.14,0.00030963,2]
[421555580,1777871438000,-206.14,0.00030963,2]
[421555584,1777871438000,-206.14,0.00030963,2]
[421555581,1777871438000,-206.14,0.00030963,2]
[421555579,1777871438000,-1393.2,0.00030959,30]
[421555585,1777871438000,-206.14,0.00030963,2]
[421555574,1777871438000,-650.0,0.00030928,2]
[421555582,1777871438000,-206.14,0.00030963,2]
[421555577,1777871438000,-650.0,0.00030928,2]
[421555587,1777871438000,-206.14,0.00030965,2]
[421555586,1777871438000,-206.14,0.00030965,2]
[421555597,1777871438000,-206.14,0.00030967,2]
[421555576,1777871438000,-650.0,0.00030928,2]
[421555561,1777871438000,-150.0,0.00030773,7]
[421555603,1777871438000,-150.0,0.00031011,2]
[421555620,1777871438000,-224.0,0.00031267,2]
[421555655,1777871438000,-4789.988655,0.00032,7]
[421555658,1777871438000,-718.963882,0.00032,7]
[421555661,1777871438000,-718.963882,0.00032,7]
[421555656,1777871438000,-4789.988655,0.00032,7]
[421555660,1777871438000,-718.963882,0.00032,7]
[421555657,1777871438000,-4789.988655,0.00032,7]
[421555659,1777871438000,-151.0,0.00032,7]
[421555664,1777871438000,-151.0,0.00032,7]
[421555665,1777871438000,-422.84661992,0.00032101,2]
[421555663,1777871438000,-151.0,0.00032,7]
[421555669,1777871438000,-183.56859,0.00032137,7]
[421555671,1777871438000,-151.0,0.00032137,7]
[421555666,1777871438000,-384.0,0.00032137,2]
[421555654,1777871438000,-4789.988655,0.00032,7]
[421555673,1777871438000,-591.494708,0.00032137,7]
[421555667,1777871438000,-183.56859,0.00032137,7]
[421555672,1777871438000,-151.0,0.00032137,7]
[421555670,1777871438000,-183.568595,0.00032137,7]
[421555674,1777871438000,-591.494708,0.00032137,7]
[421555675,1777871438000,-591.494708,0.00032137,7]
[421555678,1777871438000,-17040.81,0.000322,7]
[421555677,1777871438000,-453.41,0.000322,7]
[421555680,1777871438000,-334.0,0.00032218,30]
[421555676,1777871438000,-591.4947,0.00032137,7]
[421555679,1777871438000,-831.7,0.0003221,5]
[421555682,1777871438000,-1401.0,0.00032218,30]
[421555681,1777871438000,-456.0,0.00032218,30]
[421555616,1777871438000,-399.0,0.00031222,30]
[421555668,1777871438000,-183.56859,0.00032137,7]
[421555662,1777871438000,-718.963882,0.00032,7]
[421555621,1777871438000,-2947.64686291,0.00031316,2]
[421555653,1777871438000,-194.724221,0.00032,7]
[421555651,1777871438000,-194.724221,0.00032,7]
[421555625,1777871438000,-200.0,0.000314,7]
[421555628,1777871438000,-200.0,0.000314,7]
[421555633,1777871438000,-1000.0,0.000314,7]
[421555627,1777871438000,-200.0,0.000314,7]
[421555629,1777871438000,-200.0,0.000314,7]
[421555632,1777871438000,-184.0,0.000314,7]
[421555634,1777871438000,-429.17217803,0.00031458,30]
[421555626,1777871438000,-200.0,0.000314,7]
[421555636,1777871438000,-200.0,0.00031628,2]
[421555630,1777871438000,-200.0,0.000314,7]
[421555631,1777871438000,-200.0,0.000314,7]
[421555637,1777871438000,-1275.19368886,0.000317,2]
[421555635,1777871438000,-150.0,0.00031507,2]
[421555619,1777871438000,-150.0,0.00031267,2]
[421555646,1777871438000,-215.59649999,0.00032,120]
[421555647,1777871438000,-1887.54559847,0.00032,120]
[421555652,1777871438000,-194.724221,0.00032,7]
[421555650,1777871438000,-194.724221,0.00032,7]
[421555649,1777871438000,-225.54132,0.00032,7]
[421555644,1777871438000,-150.0,0.00031912,7]
[421555645,1777871438000,-694.38426659,0.00031973,2]
[421555648,1777871438000,-700.0,0.00032,2]
[421555641,1777871438000,-298.0316733,0.00031862,60]
[421555643,1777871438000,-162.0,0.000319,7]
[421555639,1777871438000,-1275.19368884,0.000317,2]
[421555638,1777871438000,-1275.19368884,0.000317,2]
[421555640,1777871438000,-152.0,0.00031767,3]
[421555642,1777871438000,-160.8957506,0.00031862,60]
[421555704,1777871439000,-350.0,0.000323,30]
[421555708,1777871439000,-150.0,0.000324,2]
[421555709,1777871439000,-160.0,0.000324,2]
[421555703,1777871439000,-350.0,0.000323,30]
[421555705,1777871439000,-350.0,0.000323,30]
[421555706,1777871439000,-350.0,0.000323,30]
[421555714,1777871439000,-1000.0,0.00032442,2]
[421555711,1777871439000,-150.0,0.000324,2]
[421555710,1777871439000,-188.0,0.000324,2]
[421555712,1777871439000,-193.0,0.000324,2]
[421555718,1777871439000,-1000.0,0.00032442,2]
[421555715,1777871439000,-1000.0,0.00032442,2]
[421555707,1777871439000,-223.0,0.000323,30]
[421555720,1777871439000,-1000.0,0.0003248,2]
[421555713,1777871439000,-248.0,0.00032439,2]
[421555716,1777871439000,-1000.0,0.00032442,2]
[421555702,1777871439000,-350.0,0.000323,30]
[421555691,1777871439000,-164.9681303,0.00032222,30]
[421555698,1777871439000,-500.0,0.00032299,30]
[421555683,1777871439000,-454.0,0.00032218,30]
[421555685,1777871439000,-629.0,0.00032218,30]
[421555684,1777871439000,-158.05490145,0.00032218,30]
[421555687,1777871439000,-277.0,0.00032218,30]
[421555686,1777871439000,-180.0,0.00032218,30]
[421555688,1777871439000,-1815.22097739,0.00032218,30]
[421555690,1777871439000,-399.0,0.00032222,30]
[421555689,1777871439000,-378.77902261,0.00032218,30]
[421555692,1777871439000,-500.0,0.00032299,2]
[421555694,1777871439000,-500.0,0.00032299,30]
[421555695,1777871439000,-500.0,0.00032299,30]
[421555693,1777871439000,-1000.0,0.00032299,30]
[421555719,1777871439000,-4066.20700405,0.00032453,2]
[421555696,1777871439000,-500.0,0.00032299,30]
[421555697,1777871439000,-500.0,0.00032299,30]
[421555701,1777871439000,-16992.64812045,0.000323,30]
[421555700,1777871439000,-906.16421822,0.000323,2]
[421555699,1777871439000,-323.0,0.00032299,30]
[421555722,1777871439000,-1000.0,0.0003248,2]
[421555717,1777871439000,-1000.0,0.00032442,2]
[421555727,1777871439000,-204.0,0.00032513,2]
[421555744,1777871439000,-153.51546664,0.00032877,2]
[421555742,1777871439000,-406.06448679,0.00032877,2]
[421555743,1777871439000,-500.0,0.00032877,2]
[421555748,1777871439000,-415.794738,0.00032877,7]
[421555750,1777871439000,-2463.0,0.00032903,2]
[421555749,1777871439000,-415.794738,0.00032877,7]
[421555760,1777871439000,-52023.80528575,0.00033,2]
[421555737,1777871439000,-500.0,0.00032877,2]
[421555751,1777871439000,-928.0,0.00032903,2]
[421555757,1777871439000,-215.59649999,0.00033,120]
[421555721,1777871439000,-1000.0,0.0003248,2]
[421555759,1777871439000,-2306.69741237,0.00033,120]
[421555755,1777871439000,-185.765,0.0003298,2]
[421555756,1777871439000,-500.0,0.00032999,60]
[421555761,1777871439000,-21631.52997212,0.00033,5]
[421555762,1777871439000,-416.96649279,0.000299,2]
[421555753,1777871439000,-3675.0,0.0003298,2]
[421555747,1777871439000,-415.794738,0.00032877,7]
[421555758,1777871439000,-1887.54559847,0.00033,120]
[421555741,1777871439000,-500.0,0.00032877,2]
[421555746,1777871439000,-415.794738,0.00032877,7]
[421555726,1777871439000,-150.0,0.00032513,2]
[421555723,1777871439000,-1000.0,0.0003248,2]
[421555724,1777871439000,-1000.0,0.0003248,2]
[421555725,1777871439000,-150.0,0.00032513,2]
[421555734,1777871439000,-500.0,0.00032876,2]
[421555735,1777871439000,-349.13,0.00032877,2]
[421555729,1777871439000,-242.0,0.00032548,2]
[421555728,1777871439000,-292.5,0.00032548,2]
[421555730,1777871439000,-2709.30010522,0.00032554,2]
[421555732,1777871439000,-4897.37610436,0.000328,2]
[421555731,1777871439000,-150.0,0.00032562,2]
[421555736,1777871439000,-735.14,0.00032877,2]
[421555738,1777871439000,-500.0,0.00032877,2]
[421555740,1777871439000,-500.0,0.00032877,2]
[421555739,1777871439000,-500.0,0.00032877,2]
[421555733,1777871439000,-515.0,0.00032801,8]
[421555745,1777871439000,-151.0,0.00032877,7]
[421555784,1777871440000,-151.0,0.0003,7]
[421555783,1777871440000,-151.0,0.0003,7]